[Event "GrandPrix_29.05"]
[Site "Chess.com"]
[Date "2020.05.29"]
[Round "1"]
[White "VojtechPlat"]
[Black "A_N_D-R_E_I"]
[Result "1-0"]
[WhiteElo "2574"]
[BlackElo "2125"]
[TimeControl "600+2"]
[EndTime "9:19:14 PDT"]
[Termination "VojtechPlat won by resignation"]

1. e4 {[%clk 0:10:01.9]} 1... c5 {[%clk 0:09:59.2]} 2. Nf3 {[%clk 0:10:02.1]}
2... Nc6 {[%clk 0:09:59.4]} 3. c3 {[%clk 0:09:54.1]} 3... Nf6 {[%clk 0:09:57.3]}
4. e5 {[%clk 0:09:54.4]} 4... Nd5 {[%clk 0:09:55.9]} 5. Bc4 {[%clk 0:09:54.9]}
5... Nb6 {[%clk 0:09:51.9]} 6. Bb3 {[%clk 0:09:55.7]} 6... c4 {[%clk 0:09:37.4]}
7. Bc2 {[%clk 0:09:56.6]} 7... d6 {[%clk 0:09:11.2]} 8. exd6 {[%clk 0:09:56.2]}
8... e5 {[%clk 0:08:56.9]} 9. O-O {[%clk 0:09:54.2]} 9... Bxd6 {[%clk 0:08:57]}
10. h3 {[%clk 0:09:49.7]} 10... O-O {[%clk 0:08:57.4]} 11. Re1 {[%clk
0:09:49.9]} 11... f5 {[%clk 0:08:44.3]} 12. d3 {[%clk 0:09:34.1]} 12... cxd3
{[%clk 0:08:41.5]} 13. Bb3+ {[%clk 0:09:34.7]} 13... Kh8 {[%clk 0:08:40.4]} 14.
Ng5 {[%clk 0:09:35.6]} 14... Qf6 {[%clk 0:06:05.8]} 15. Qh5 {[%clk 0:09:04.5]}
15... h6 {[%clk 0:06:04.9]} 16. Nf7+ {[%clk 0:09:04.9]} 16... Kh7 {[%clk
0:06:05.6]} 17. Nd2 {[%clk 0:07:17.2]} 17... e4 {[%clk 0:05:40.1]} 18. Rxe4
{[%clk 0:06:38.1]} 18... Qg6 {[%clk 0:04:40.3]} 19. Qxg6+ {[%clk 0:05:16.7]}
19... Kxg6 {[%clk 0:04:41.1]} 20. Nxd6 {[%clk 0:05:12.6]} 20... fxe4 {[%clk
0:04:41.1]} 21. N2xe4 {[%clk 0:05:13.8]} 21... Na5 {[%clk 0:03:30.8]} 22. Bd2
{[%clk 0:04:25.3]} 22... Nxb3 {[%clk 0:03:17.3]} 23. axb3 {[%clk 0:04:25.8]}
23... a6 {[%clk 0:03:14.8]} 24. c4 {[%clk 0:04:26.3]} 24... Nd7 {[%clk
0:03:02.4]} 25. Bc3 {[%clk 0:04:26.9]} 25... Nf6 {[%clk 0:02:57.7]} 26. Nxf6
{[%clk 0:04:26.9]} 26... gxf6 {[%clk 0:02:58.8]} 27. Rd1 {[%clk 0:04:27.9]}
27... Rd8 {[%clk 0:02:45.8]} 28. Rxd3 {[%clk 0:04:28.1]} 28... Be6 {[%clk
0:01:42.1]} 29. Rg3+ {[%clk 0:04:27.5]} 29... Kh7 {[%clk 0:01:42.8]} 30. Ne4
{[%clk 0:04:27.8]} 30... h5 {[%clk 0:01:03.3]} 31. Nxf6+ {[%clk 0:04:28.5]}
31... Kh6 {[%clk 0:01:03.6]} 32. Be5 {[%clk 0:04:29.5]} 32... Bg4 {[%clk
0:00:36.5]} 33. hxg4 {[%clk 0:04:25.7]} 33... Rd1+ {[%clk 0:00:29.8]} 34. Kh2
{[%clk 0:04:26.2]} 34... h4 {[%clk 0:00:19.5]} 35. Rh3 {[%clk 0:04:27]} 35...
Kg6 {[%clk 0:00:19.4]} 36. Rxh4 {[%clk 0:04:26.8]} 36... Rd2 {[%clk 0:00:19.3]}
37. f4 {[%clk 0:04:27.3]} 37... Rd3 {[%clk 0:00:15.4]} 38. f5+ {[%clk
0:04:27.1]} 1-0

[Event "GrandPrix_29.05"]
[Site "Chess.com"]
[Date "2020.05.29"]
[Round "1"]
[White "StephenDedalus83"]
[Black "Eltaj_Safarli"]
[Result "0-1"]
[WhiteElo "2147"]
[BlackElo "2729"]
[TimeControl "600+2"]
[EndTime "9:19:17 PDT"]
[Termination "Eltaj_Safarli won by resignation"]

1. e4 {[%clk 0:10:00.5]} 1... c5 {[%clk 0:09:49.7]} 2. Nf3 {[%clk 0:09:59.4]}
2... Nc6 {[%clk 0:09:43.8]} 3. d4 {[%clk 0:09:58.5]} 3... cxd4 {[%clk
0:09:45.7]} 4. Nxd4 {[%clk 0:09:59.3]} 4... Nf6 {[%clk 0:09:43.6]} 5. Nc3 {[%clk
0:09:59.6]} 5... e6 {[%clk 0:09:43.5]} 6. a3 {[%clk 0:09:41.5]} 6... Be7 {[%clk
0:09:32.3]} 7. Be2 {[%clk 0:09:41.8]} 7... O-O {[%clk 0:09:29.1]} 8. O-O {[%clk
0:09:41.4]} 8... d6 {[%clk 0:09:23]} 9. Be3 {[%clk 0:09:39.3]} 9... a6 {[%clk
0:09:17.1]} 10. f4 {[%clk 0:09:33.6]} 10... Qc7 {[%clk 0:09:15.4]} 11. Kh1
{[%clk 0:09:10]} 11... Nxd4 {[%clk 0:08:51.8]} 12. Qxd4 {[%clk 0:08:53.4]} 12...
e5 {[%clk 0:08:49.8]} 13. Qd3 {[%clk 0:08:52.1]} 13... exf4 {[%clk 0:08:04.1]}
14. Bxf4 {[%clk 0:08:40]} 14... Be6 {[%clk 0:07:56.9]} 15. Rad1 {[%clk 0:08:39]}
15... Rfd8 {[%clk 0:07:52]} 16. Qg3 {[%clk 0:08:33.3]} 16... Ne8 {[%clk
0:07:27.2]} 17. e5 {[%clk 0:06:53.1]} 17... Qb6 {[%clk 0:06:23.9]} 18. Na4
{[%clk 0:05:20.9]} 18... Qc6 {[%clk 0:06:15.9]} 19. Nc3 {[%clk 0:05:21.6]} 19...
dxe5 {[%clk 0:05:32.6]} 20. Bxe5 {[%clk 0:05:21.5]} 20... Rxd1 {[%clk
0:05:33.4]} 21. Rxd1 {[%clk 0:05:21.7]} 21... Rd8 {[%clk 0:05:34.6]} 22. Rxd8
{[%clk 0:04:57.8]} 22... Bxd8 {[%clk 0:05:36.5]} 23. Bd3 {[%clk 0:04:58.2]}
23... g6 {[%clk 0:05:17.6]} 24. Be4 {[%clk 0:04:26.5]} 24... Qb6 {[%clk
0:05:04]} 25. Ne2 {[%clk 0:04:24.9]} 25... Bf6 {[%clk 0:04:42]} 26. Bd3 {[%clk
0:03:57.4]} 26... Qc5 {[%clk 0:04:00.3]} 27. Bxf6 {[%clk 0:03:55]} 27... Nxf6
{[%clk 0:04:02.2]} 28. Nf4 {[%clk 0:03:51.4]} 28... Bd7 {[%clk 0:03:50.9]} 29.
h3 {[%clk 0:03:35.8]} 29... Bc6 {[%clk 0:03:44.6]} 30. Kh2 {[%clk 0:03:33]}
30... Kg7 {[%clk 0:03:42.9]} 31. Ne2 {[%clk 0:03:23.2]} 31... Nh5 {[%clk
0:03:34.8]} 32. Qg4 {[%clk 0:03:14.6]} 32... Qe5+ {[%clk 0:03:31.7]} 33. Kg1
{[%clk 0:03:09.7]} 33... Qxb2 {[%clk 0:03:21.6]} 34. Nd4 {[%clk 0:02:50.2]}
34... Qxa3 {[%clk 0:03:04.4]} 35. Nf5+ {[%clk 0:02:49.5]} 35... Kf8 {[%clk
0:03:04.8]} 36. Qg5 {[%clk 0:02:46.5]} 36... Qa1+ {[%clk 0:02:50.4]} 37. Kf2
{[%clk 0:02:45.3]} 37... Qf6 {[%clk 0:02:45.7]} 38. Qh6+ {[%clk 0:02:21.6]}
38... Ng7 {[%clk 0:02:37.5]} 39. Kg1 {[%clk 0:02:20.8]} 39... Qa1+ {[%clk
0:02:31.3]} 40. Kf2 {[%clk 0:02:18.3]} 40... gxf5 {[%clk 0:02:30]} 0-1

[Event "GrandPrix_29.05"]
[Site "Chess.com"]
[Date "2020.05.29"]
[Round "1"]
[White "SergeyVashchilov"]
[Black "Lukianoo"]
[Result "0-1"]
[WhiteElo "2154"]
[BlackElo "2614"]
[TimeControl "600+2"]
[EndTime "9:19:19 PDT"]
[Termination "Lukianoo won by resignation"]

1. e4 {[%clk 0:09:59.7]} 1... c6 {[%clk 0:09:59.8]} 2. d4 {[%clk 0:10:00]} 2...
d5 {[%clk 0:09:56.9]} 3. e5 {[%clk 0:10:01]} 3... Bf5 {[%clk 0:09:57.3]} 4. Ne2
{[%clk 0:10:01.9]} 4... e6 {[%clk 0:09:54.4]} 5. Ng3 {[%clk 0:10:02.7]} 5... Bg6
{[%clk 0:09:54.9]} 6. h4 {[%clk 0:10:03.8]} 6... h6 {[%clk 0:09:55.9]} 7. h5
{[%clk 0:10:04.4]} 7... Bh7 {[%clk 0:09:56.4]} 8. Bd3 {[%clk 0:10:05.8]} 8...
Bxd3 {[%clk 0:09:56.9]} 9. cxd3 {[%clk 0:10:07.1]} 9... Ne7 {[%clk 0:09:45.1]}
10. Be3 {[%clk 0:09:58.1]} 10... Nd7 {[%clk 0:09:45]} 11. f4 {[%clk 0:09:49]}
11... g6 {[%clk 0:09:18.5]} 12. hxg6 {[%clk 0:08:29.8]} 12... fxg6 {[%clk
0:09:17.5]} 13. Qg4 {[%clk 0:08:27.6]} 13... Kf7 {[%clk 0:09:17.7]} 14. Nd2
{[%clk 0:06:31.6]} 14... Bg7 {[%clk 0:09:05.4]} 15. O-O {[%clk 0:05:36]} 15...
Qe8 {[%clk 0:08:26.4]} 16. Nf3 {[%clk 0:05:09.1]} 16... Nf5 {[%clk 0:08:18]} 17.
Nxf5 {[%clk 0:04:46.9]} 17... exf5 {[%clk 0:08:18.4]} 18. Qg3 {[%clk 0:04:24.8]}
18... Nf8 {[%clk 0:08:19.3]} 19. e6+ {[%clk 0:03:34.4]} 19... Nxe6 {[%clk
0:08:15]} 20. Ne5+ {[%clk 0:03:34.1]} 20... Bxe5 {[%clk 0:08:14.3]} 21. fxe5
{[%clk 0:03:33.1]} 21... Ke7 {[%clk 0:08:05.7]} 22. b4 {[%clk 0:03:04.8]} 22...
a6 {[%clk 0:08:06]} 23. a4 {[%clk 0:03:04.5]} 23... Qf7 {[%clk 0:07:52.9]} 24.
Qe1 {[%clk 0:02:24.7]} 24... g5 {[%clk 0:07:44.3]} 25. b5 {[%clk 0:02:21.8]}
25... Rhc8 {[%clk 0:07:28.7]} 26. Qb4+ {[%clk 0:02:16.8]} 26... Ke8 {[%clk
0:07:29.2]} 27. Rac1 {[%clk 0:01:49.7]} 27... f4 {[%clk 0:07:26.9]} 28. Bf2
{[%clk 0:00:55.1]} 28... Qe7 {[%clk 0:07:12.2]} 29. Qb3 {[%clk 0:00:55.6]} 29...
axb5 {[%clk 0:07:11.8]} 30. axb5 {[%clk 0:00:55.1]} 30... Ra3 {[%clk 0:07:08.5]}
31. Qd1 {[%clk 0:00:56]} 31... Qf7 {[%clk 0:07:04.8]} 32. Qd2 {[%clk 0:00:20.3]}
32... Kf8 {[%clk 0:06:50.6]} 33. bxc6 {[%clk 0:00:19.3]} 33... bxc6 {[%clk
0:06:50.8]} 34. Qb4+ {[%clk 0:00:13.9]} 34... Qe7 {[%clk 0:06:51.5]} 35. Qb6
{[%clk 0:00:13.5]} 35... Qc7 {[%clk 0:06:26.1]} 36. Qb4+ {[%clk 0:00:13.6]}
36... Qe7 {[%clk 0:06:26.3]} 37. Qb6 {[%clk 0:00:15]} 37... Qa7 {[%clk
0:06:09.7]} 38. Qb4+ {[%clk 0:00:15.2]} 38... Kf7 {[%clk 0:06:00.3]} 39. Qd6
{[%clk 0:00:12.6]} 39... Ra6 {[%clk 0:05:55.2]} 40. g3 {[%clk 0:00:10.2]} 40...
Qe7 {[%clk 0:05:53.8]} 41. Qxe7+ {[%clk 0:00:07.5]} 41... Kxe7 {[%clk
0:05:54.6]} 42. Rb1 {[%clk 0:00:08.6]} 42... Rc7 {[%clk 0:05:50.4]} 43. Be1
{[%clk 0:00:07.9]} 43... Nxd4 {[%clk 0:05:45.8]} 44. gxf4 {[%clk 0:00:08.6]}
44... Ne2+ {[%clk 0:05:46.1]} 45. Kh2 {[%clk 0:00:08.7]} 45... Nxf4 {[%clk
0:05:48]} 46. d4 {[%clk 0:00:06.6]} 46... Ke6 {[%clk 0:05:47.1]} 47. Rf2 {[%clk
0:00:05.4]} 47... Ra4 {[%clk 0:05:42.6]} 48. Rd1 {[%clk 0:00:04.5]} 48... c5
{[%clk 0:05:39.9]} 49. Rc2 {[%clk 0:00:04.4]} 49... c4 {[%clk 0:05:38.6]} 50.
Bg3 {[%clk 0:00:05.2]} 50... c3 {[%clk 0:05:36.2]} 51. Rf1 {[%clk 0:00:05.4]}
51... Rxd4 {[%clk 0:05:36.2]} 52. Bxf4 {[%clk 0:00:06]} 52... Rxf4 {[%clk
0:05:36.4]} 53. Re1 {[%clk 0:00:06.6]} 53... d4 {[%clk 0:05:37]} 0-1

[Event "GrandPrix_29.05"]
[Site "Chess.com"]
[Date "2020.05.29"]
[Round "1"]
[White "MikaelyanArman1996"]
[Black "Korona_91"]
[Result "1-0"]
[WhiteElo "2555"]
[BlackElo "2082"]
[TimeControl "600+2"]
[EndTime "9:19:32 PDT"]
[Termination "MikaelyanArman1996 won by resignation"]

1. e4 {[%clk 0:09:59.9]} 1... e6 {[%clk 0:09:59.5]} 2. d4 {[%clk 0:09:55.8]}
2... d5 {[%clk 0:09:58]} 3. Nc3 {[%clk 0:09:56.6]} 3... Bb4 {[%clk 0:09:57.6]}
4. Ne2 {[%clk 0:09:45.4]} 4... Nf6 {[%clk 0:09:55.3]} 5. e5 {[%clk 0:09:32.1]}
5... Nfd7 {[%clk 0:09:37.8]} 6. a3 {[%clk 0:09:27.7]} 6... Be7 {[%clk
0:09:30.5]} 7. Be3 {[%clk 0:08:49.8]} 7... c5 {[%clk 0:09:24.9]} 8. f4 {[%clk
0:08:48.9]} 8... Nc6 {[%clk 0:09:22.2]} 9. Qd2 {[%clk 0:08:35.2]} 9... a6 {[%clk
0:09:13.1]} 10. dxc5 {[%clk 0:08:04.4]} 10... Nxc5 {[%clk 0:08:34.1]} 11. Nd4
{[%clk 0:07:30.3]} 11... Qc7 {[%clk 0:08:14.2]} 12. g3 {[%clk 0:07:17.6]} 12...
Bd7 {[%clk 0:07:34.5]} 13. Bg2 {[%clk 0:06:52.9]} 13... f6 {[%clk 0:07:20.1]}
14. exf6 {[%clk 0:06:48.1]} 14... gxf6 {[%clk 0:07:03.8]} 15. O-O {[%clk
0:06:26.2]} 15... f5 {[%clk 0:06:50.9]} 16. Nxf5 {[%clk 0:06:09.9]} 16... exf5
{[%clk 0:06:35]} 17. Nxd5 {[%clk 0:06:09.2]} 17... Qd6 {[%clk 0:06:33.5]} 18.
Qc3 {[%clk 0:05:51.6]} 18... Rf8 {[%clk 0:05:34.1]} 19. Nxe7 {[%clk 0:05:25]}
19... Na4 {[%clk 0:05:32.1]} 20. Qb3 {[%clk 0:03:32]} 20... Nxe7 {[%clk
0:05:25.5]} 21. Rad1 {[%clk 0:02:51.9]} 21... Qe6 {[%clk 0:05:20.7]} 22. c4
{[%clk 0:02:47]} 22... Rc8 {[%clk 0:05:01.7]} 23. Rfe1 {[%clk 0:02:20.5]} 23...
b5 {[%clk 0:04:15.4]} 24. Bf2 {[%clk 0:02:09.3]} 24... Qxc4 {[%clk 0:02:59.4]}
25. Qe3 {[%clk 0:02:04.6]} 25... Qf7 {[%clk 0:02:55.2]} 26. Qa7 {[%clk
0:01:30.9]} 26... Rd8 {[%clk 0:02:41.5]} 27. Rxd7 {[%clk 0:01:16]} 1-0

[Event "GrandPrix_29.05"]
[Site "Chess.com"]
[Date "2020.05.29"]
[Round "1"]
[White "Rikikits"]
[Black "Mikhail_Golubev"]
[Result "1-0"]
[WhiteElo "2691"]
[BlackElo "2189"]
[TimeControl "600+2"]
[EndTime "9:19:34 PDT"]
[Termination "Rikikits won on time"]

1. e4 {[%clk 0:10:01.8]} 1... c5 {[%clk 0:10:00.1]} 2. Nc3 {[%clk 0:10:01.9]}
2... Nc6 {[%clk 0:09:55.7]} 3. Bb5 {[%clk 0:10:02.2]} 3... Nd4 {[%clk
0:09:47.2]} 4. Nf3 {[%clk 0:10:02.5]} 4... a6 {[%clk 0:08:55.2]} 5. Bd3 {[%clk
0:10:02.1]} 5... Nxf3+ {[%clk 0:08:27.4]} 6. Qxf3 {[%clk 0:09:59.6]} 6... g6
{[%clk 0:08:27.5]} 7. h4 {[%clk 0:09:50.8]} 7... h5 {[%clk 0:08:01.8]} 8. a4
{[%clk 0:09:38.1]} 8... Bg7 {[%clk 0:07:43.4]} 9. Bc4 {[%clk 0:09:35.9]} 9... e6
{[%clk 0:07:16.4]} 10. d3 {[%clk 0:09:36]} 10... b6 {[%clk 0:03:58]} 11. Bg5
{[%clk 0:09:14.2]} 11... Qc7 {[%clk 0:03:55.1]} 12. O-O {[%clk 0:08:27.2]} 12...
Bb7 {[%clk 0:03:48.6]} 13. Rae1 {[%clk 0:08:12.6]} 13... Nh6 {[%clk 0:03:16.8]}
14. g3 {[%clk 0:06:24.1]} 14... Ng4 {[%clk 0:03:08.9]} 15. Qg2 {[%clk
0:06:01.3]} 15... O-O {[%clk 0:02:52.4]} 16. Bb3 {[%clk 0:05:54.1]} 16... f5
{[%clk 0:01:04.5]} 17. f3 {[%clk 0:05:32.4]} 17... Bd4+ {[%clk 0:00:56.1]} 18.
Kh1 {[%clk 0:05:32.4]} 18... fxe4 {[%clk 0:00:50.6]} 19. Nxe4 {[%clk 0:04:59.9]}
19... Nf6 {[%clk 0:00:24.6]} 20. c3 {[%clk 0:04:54.3]} 20... Nxe4 {[%clk
0:00:20.8]} 21. dxe4 {[%clk 0:04:56.2]} 21... Bg7 {[%clk 0:00:14.9]} 22. Kh2
{[%clk 0:04:45.1]} 22... Rf7 {[%clk 0:00:15]} 23. Qd2 {[%clk 0:04:37.8]} 23...
Raf8 {[%clk 0:00:13.1]} 24. f4 {[%clk 0:04:38.9]} 24... c4 {[%clk 0:00:08]} 25.
Bc2 {[%clk 0:04:40]} 25... Qc6 {[%clk 0:00:06.7]} 26. Rd1 {[%clk 0:04:38.2]}
26... d5 {[%clk 0:00:03.5]} 27. Rfe1 {[%clk 0:04:19.8]} 27... Kh7 {[%clk
0:00:02.7]} 28. Qe2 {[%clk 0:04:18]} 28... Rd7 {[%clk 0:00:02.4]} 29. exd5
{[%clk 0:04:11.3]} 29... Rxd5 {[%clk 0:00:03.2]} 30. Be4 {[%clk 0:03:39.9]} 1-0

[Event "GrandPrix_29.05"]
[Site "Chess.com"]
[Date "2020.05.29"]
[Round "1"]
[White "Pidzsy"]
[Black "Petriashvili02"]
[Result "0-1"]
[WhiteElo "2121"]
[BlackElo "2203"]
[TimeControl "600+2"]
[EndTime "9:19:40 PDT"]
[Termination "Petriashvili02 won by resignation"]

1. e4 {[%clk 0:10:01.9]} 1... c6 {[%clk 0:09:47]} 2. Nf3 {[%clk 0:09:59.4]} 2...
d5 {[%clk 0:09:48.1]} 3. Nc3 {[%clk 0:10:01]} 3... dxe4 {[%clk 0:09:48.8]} 4.
Nxe4 {[%clk 0:10:01.6]} 4... Nf6 {[%clk 0:09:50.2]} 5. Nxf6+ {[%clk 0:10:00.6]}
5... exf6 {[%clk 0:09:52.1]} 6. d4 {[%clk 0:09:50.3]} 6... Bd6 {[%clk
0:09:51.7]} 7. Bd3 {[%clk 0:09:51.4]} 7... O-O {[%clk 0:09:33]} 8. O-O {[%clk
0:09:51.5]} 8... Bg4 {[%clk 0:09:33.7]} 9. h3 {[%clk 0:09:46.7]} 9... Bh5 {[%clk
0:09:33.7]} 10. Bf5 {[%clk 0:09:44]} 10... Nd7 {[%clk 0:08:31.9]} 11. Qd3 {[%clk
0:09:41.6]} 11... Bg6 {[%clk 0:08:31.7]} 12. Re1 {[%clk 0:09:33.8]} 12... Qc7
{[%clk 0:08:01.1]} 13. Bd2 {[%clk 0:09:22.1]} 13... Rad8 {[%clk 0:07:18.1]} 14.
Bxg6 {[%clk 0:09:11.3]} 14... hxg6 {[%clk 0:07:20]} 15. c4 {[%clk 0:08:57.7]}
15... c5 {[%clk 0:05:46.3]} 16. d5 {[%clk 0:08:55.1]} 16... Rfe8 {[%clk
0:05:43.1]} 17. Bc3 {[%clk 0:08:49.5]} 17... a6 {[%clk 0:05:41.4]} 18. Re2
{[%clk 0:08:40]} 18... Qb8 {[%clk 0:05:26.2]} 19. Rae1 {[%clk 0:08:38]} 19...
Rxe2 {[%clk 0:05:03.6]} 20. Qxe2 {[%clk 0:08:37.9]} 20... b5 {[%clk 0:04:17.6]}
21. b3 {[%clk 0:08:36.6]} 21... Kf8 {[%clk 0:04:11.2]} 22. Nd2 {[%clk 0:08:25]}
22... Re8 {[%clk 0:03:31]} 23. Qxe8+ {[%clk 0:08:24.9]} 23... Qxe8 {[%clk
0:03:32.9]} 24. Rxe8+ {[%clk 0:08:26]} 24... Kxe8 {[%clk 0:03:34.8]} 25. g3
{[%clk 0:08:27]} 25... Be5 {[%clk 0:02:25.3]} 26. Bxe5 {[%clk 0:07:50]} 26...
fxe5 {[%clk 0:02:27.2]} 27. cxb5 {[%clk 0:06:59.8]} 27... axb5 {[%clk
0:02:29.1]} 28. a4 {[%clk 0:07:01.2]} 28... c4 {[%clk 0:02:25.4]} 29. bxc4
{[%clk 0:06:35.5]} 29... bxa4 {[%clk 0:02:25.2]} 30. Nb1 {[%clk 0:06:21.7]}
30... Nb6 {[%clk 0:02:19]} 31. Na3 {[%clk 0:06:14.8]} 31... Kd7 {[%clk
0:02:20.1]} 32. Kf1 {[%clk 0:06:10]} 32... Kd6 {[%clk 0:02:21.4]} 33. Ke2 {[%clk
0:06:11.1]} 33... Kc5 {[%clk 0:02:22.8]} 34. Kd3 {[%clk 0:06:12.5]} 34... Kb4
{[%clk 0:02:08.8]} 35. Nc2+ {[%clk 0:05:55.2]} 35... Kb3 {[%clk 0:02:04.9]} 36.
d6 {[%clk 0:05:50.1]} 36... Nd7 {[%clk 0:02:00.7]} 37. f3 {[%clk 0:04:54.3]}
37... f5 {[%clk 0:01:53.3]} 38. Na1+ {[%clk 0:04:16.5]} 38... Kb2 {[%clk
0:01:52]} 39. c5 {[%clk 0:04:17.5]} 39... Nxc5+ {[%clk 0:01:46.3]} 40. Kc4
{[%clk 0:04:18.7]} 40... Nd7 {[%clk 0:01:37.1]} 41. Kb4 {[%clk 0:04:19.9]} 41...
Kxa1 {[%clk 0:01:37.7]} 42. Kxa4 {[%clk 0:04:21]} 42... Kb2 {[%clk 0:01:31.7]}
43. Kb4 {[%clk 0:04:21]} 43... Kc2 {[%clk 0:01:25.3]} 44. Kc4 {[%clk 0:04:22.2]}
44... Nf6 {[%clk 0:01:04.2]} 45. g4 {[%clk 0:04:17.8]} 45... fxg4 {[%clk
0:01:00.3]} 46. hxg4 {[%clk 0:04:18.7]} 46... g5 {[%clk 0:00:59]} 47. Kc5 {[%clk
0:03:58.6]} 47... Kd3 {[%clk 0:00:58.5]} 48. d7 {[%clk 0:04:00]} 48... Nxd7+
{[%clk 0:00:59]} 49. Kd6 {[%clk 0:04:01.6]} 49... Ke3 {[%clk 0:01:00.1]} 50.
Kxd7 {[%clk 0:04:03]} 50... Kxf3 {[%clk 0:01:01.5]} 0-1

[Event "GrandPrix_29.05"]
[Site "Chess.com"]
[Date "2020.05.29"]
[Round "1"]
[White "MartinCerveny"]
[Black "Sunerorlater"]
[Result "1/2-1/2"]
[WhiteElo "2213"]
[BlackElo "2413"]
[TimeControl "600+2"]
[EndTime "9:19:46 PDT"]
[Termination "Game drawn by repetition"]

1. d4 {[%clk 0:09:58]} 1... Nf6 {[%clk 0:09:55.9]} 2. Nf3 {[%clk 0:09:58.2]}
2... d5 {[%clk 0:09:50.4]} 3. c4 {[%clk 0:09:55.2]} 3... dxc4 {[%clk 0:09:43.3]}
4. e3 {[%clk 0:09:55.9]} 4... Bg4 {[%clk 0:09:43.2]} 5. Bxc4 {[%clk 0:09:52.9]}
5... e6 {[%clk 0:09:43.9]} 6. O-O {[%clk 0:09:50.9]} 6... a6 {[%clk 0:09:42.3]}
7. a3 {[%clk 0:09:32.1]} 7... Nc6 {[%clk 0:09:41.2]} 8. h3 {[%clk 0:09:23.9]}
8... Bh5 {[%clk 0:09:41.1]} 9. Be2 {[%clk 0:09:21]} 9... Bd6 {[%clk 0:09:40.5]}
10. Nc3 {[%clk 0:09:13]} 10... O-O {[%clk 0:09:40.6]} 11. b4 {[%clk 0:08:52.9]}
11... Qe8 {[%clk 0:09:14.2]} 12. Bb2 {[%clk 0:08:52]} 12... Rd8 {[%clk
0:09:13.9]} 13. Qb3 {[%clk 0:08:41.5]} 13... e5 {[%clk 0:09:01.6]} 14. dxe5
{[%clk 0:07:38.1]} 14... Nxe5 {[%clk 0:09:00.1]} 15. Nxe5 {[%clk 0:07:38.8]}
15... Qxe5 {[%clk 0:08:57]} 16. g3 {[%clk 0:07:31.1]} 16... Bxe2 {[%clk
0:08:41]} 17. Nxe2 {[%clk 0:07:33]} 17... Qf5 {[%clk 0:08:39.6]} 18. Bxf6 {[%clk
0:07:24.6]} 18... Qxf6 {[%clk 0:08:39.1]} 19. Qc4 {[%clk 0:07:17.7]} 19... Qf5
{[%clk 0:08:25.9]} 20. Kg2 {[%clk 0:07:11.8]} 20... Rfe8 {[%clk 0:08:25.2]} 21.
Rad1 {[%clk 0:07:08]} 21... Re4 {[%clk 0:07:53.4]} 22. Qd5 {[%clk 0:07:00.7]}
22... Qxd5 {[%clk 0:07:52.6]} 23. Rxd5 {[%clk 0:07:02.6]} 23... Rc4 {[%clk
0:07:46.7]} 24. Rfd1 {[%clk 0:07:01.1]} 24... Re8 {[%clk 0:07:13.9]} 25. R1d3
{[%clk 0:06:42.1]} 25... g6 {[%clk 0:07:12.8]} 26. R5d4 {[%clk 0:06:39.5]} 26...
Rc2 {[%clk 0:07:11.3]} 27. Rd2 {[%clk 0:06:38.4]} 27... Rxd2 {[%clk 0:07:06.3]}
28. Rxd2 {[%clk 0:06:40.3]} 28... Kf8 {[%clk 0:07:02.6]} 29. Rd3 {[%clk
0:06:35.2]} 29... Re5 {[%clk 0:06:58.6]} 30. f4 {[%clk 0:06:19.3]} 30... Re4
{[%clk 0:06:52.7]} 31. Nd4 {[%clk 0:06:13.8]} 31... Re8 {[%clk 0:06:25.8]} 32.
Kf3 {[%clk 0:06:13.3]} 32... Ke7 {[%clk 0:06:19.2]} 33. e4 {[%clk 0:06:13.2]}
33... f6 {[%clk 0:06:18.3]} 34. Nb3 {[%clk 0:05:59.1]} 34... Rc8 {[%clk
0:06:01.2]} 35. Na5 {[%clk 0:05:53]} 35... b6 {[%clk 0:05:36.3]} 36. Nc4 {[%clk
0:05:36.1]} 36... Ke6 {[%clk 0:05:33.3]} 37. g4 {[%clk 0:05:30.3]} 37... Be7
{[%clk 0:05:21.3]} 38. f5+ {[%clk 0:05:08.9]} 38... Kf7 {[%clk 0:05:20.8]} 39.
Rd7 {[%clk 0:04:59.1]} 39... Ke8 {[%clk 0:05:17.6]} 40. Rd5 {[%clk 0:04:57.5]}
40... b5 {[%clk 0:05:04.6]} 41. Nb2 {[%clk 0:03:45.4]} 41... c5 {[%clk
0:05:03.7]} 42. bxc5 {[%clk 0:03:43.1]} 42... Rxc5 {[%clk 0:05:03.5]} 43. Rxc5
{[%clk 0:03:40.2]} 43... Bxc5 {[%clk 0:05:03.9]} 44. a4 {[%clk 0:03:40.1]} 44...
Bd4 {[%clk 0:05:01.8]} 45. axb5 {[%clk 0:03:30.3]} 45... Bxb2 {[%clk 0:04:49.3]}
46. bxa6 {[%clk 0:03:30.2]} 46... Bd4 {[%clk 0:04:50.3]} 47. fxg6 {[%clk
0:03:16.1]} 47... hxg6 {[%clk 0:04:48.8]} 48. h4 {[%clk 0:03:16.1]} 48... Kf7
{[%clk 0:04:43.4]} 49. e5 {[%clk 0:02:58.5]} 49... fxe5 {[%clk 0:04:07.3]} 50.
Ke4 {[%clk 0:02:58.2]} 50... Kf6 {[%clk 0:03:50.4]} 51. Kd5 {[%clk 0:02:42.2]}
51... Ba7 {[%clk 0:03:37.8]} 52. Ke4 {[%clk 0:02:28.9]} 52... Bb8 {[%clk
0:03:34]} 53. Kd5 {[%clk 0:02:27.7]} 53... Ba7 {[%clk 0:03:09.8]} 54. Ke4 {[%clk
0:02:27.3]} 54... Bb8 {[%clk 0:03:10.1]} 55. Kd5 {[%clk 0:02:27.7]} 55... Ba7
{[%clk 0:03:10.6]} 1/2-1/2

[Event "GrandPrix_29.05"]
[Site "Chess.com"]
[Date "2020.05.29"]
[Round "1"]
[White "Onischuk_V"]
[Black "Promacherr"]
[Result "1-0"]
[WhiteElo "2691"]
[BlackElo "2190"]
[TimeControl "600+2"]
[EndTime "9:19:56 PDT"]
[Termination "Onischuk_V won by resignation"]

1. e4 {[%clk 0:09:58.9]} 1... e6 {[%clk 0:10:00.4]} 2. d4 {[%clk 0:09:59]} 2...
d5 {[%clk 0:10:01.4]} 3. Bd3 {[%clk 0:10:00]} 3... c5 {[%clk 0:09:57.5]} 4. exd5
{[%clk 0:09:59.4]} 4... exd5 {[%clk 0:09:59.4]} 5. Nf3 {[%clk 0:09:58.7]} 5...
c4 {[%clk 0:09:57.6]} 6. Be2 {[%clk 0:09:59]} 6... Nf6 {[%clk 0:09:58.8]} 7. O-O
{[%clk 0:09:48.4]} 7... Bd6 {[%clk 0:09:59.2]} 8. b3 {[%clk 0:09:49.6]} 8...
cxb3 {[%clk 0:10:00.2]} 9. axb3 {[%clk 0:09:50.4]} 9... O-O {[%clk 0:10:01.2]}
10. c4 {[%clk 0:09:51.5]} 10... Nc6 {[%clk 0:09:55.5]} 11. Nc3 {[%clk
0:09:51.9]} 11... Bg4 {[%clk 0:09:29.8]} 12. Be3 {[%clk 0:09:50.6]} 12... a6
{[%clk 0:09:24]} 13. h3 {[%clk 0:09:49.8]} 13... Bh5 {[%clk 0:09:22.9]} 14. c5
{[%clk 0:08:53.8]} 14... Bc7 {[%clk 0:09:11.2]} 15. Bg5 {[%clk 0:08:52.2]} 15...
Nb4 {[%clk 0:08:40.6]} 16. Ne5 {[%clk 0:08:15]} 16... Bxe2 {[%clk 0:08:24.3]}
17. Qxe2 {[%clk 0:08:15.1]} 17... Re8 {[%clk 0:08:25.4]} 18. Rfe1 {[%clk
0:07:49.3]} 18... h6 {[%clk 0:08:21.8]} 19. Bh4 {[%clk 0:07:47.9]} 19... Re6
{[%clk 0:06:48.6]} 20. Qd2 {[%clk 0:07:15.3]} 20... Nc6 {[%clk 0:06:18.3]} 21.
Ng4 {[%clk 0:07:02]} 21... Ne4 {[%clk 0:03:29.8]} 22. Bxd8 {[%clk 0:06:24.3]}
22... Nxd2 {[%clk 0:03:29.1]} 23. Bxc7 {[%clk 0:06:21.6]} 23... Nxb3 {[%clk
0:03:29.8]} 24. Rab1 {[%clk 0:05:56.4]} 24... Ncxd4 {[%clk 0:03:18.2]} 25. Bd6
{[%clk 0:04:32.5]} 25... a5 {[%clk 0:01:46.1]} 26. Na4 {[%clk 0:03:44.6]} 26...
Rae8 {[%clk 0:01:06.8]} 27. Rxe6 {[%clk 0:03:20]} 27... fxe6 {[%clk 0:01:08.7]}
28. Ne5 {[%clk 0:03:10.1]} 28... Rc8 {[%clk 0:01:01.3]} 29. Nd3 {[%clk
0:03:03.6]} 29... Rc6 {[%clk 0:00:41.5]} 30. Be5 {[%clk 0:03:01.3]} 1-0